bitfinex/quotes_BTCUSD_20250623
["timestamp","ask_amount","ask_price","bid_price","bid_amount"]
[1750680425364,3.69691336,101440.0,101430.0,0.1705]
[1750680427553,4.14728479,101440.0,101430.0,0.1705]
[1750680428085,3.85803336,101440.0,101430.0,0.1705]
[1750680428740,3.48834536,101440.0,101430.0,0.1705]
[1750680429254,3.77759679,101440.0,101430.0,0.1402]
[1750680430731,4.11759679,101440.0,101430.0,0.1402]
[1750680431855,4.09576529,101440.0,101430.0,0.1402]
[1750680433986,4.09576529,101440.0,101430.0,0.109]
[1750680434391,4.09576529,101440.0,101430.0,0.1392]
[1750680435452,4.09576529,101440.0,101430.0,0.1709]
[1750680437542,4.09576529,101440.0,101430.0,0.1392]
[1750680437790,4.09576529,101440.0,101430.0,0.1713]
[1750680438196,5.33123067,101440.0,101430.0,0.109]
[1750680438397,4.49313038,101440.0,101430.0,0.05962007]
[1750680438620,4.49313038,101440.0,101420.0,0.00014623]
[1750680438621,2.685131,101420.0,101410.0,0.01161617]
[1750680438831,2.685131,101410.0,101400.0,0.11374132]
[1750680439077,3.26363386,101410.0,101400.0,0.11374132]
[1750680441133,3.44676886,101410.0,101400.0,0.0346]
[1750680441319,3.44676886,101410.0,101400.0,0.0396]
[1750680441742,3.60784886,101410.0,101400.0,0.0121]
[1750680442597,3.64956886,101410.0,101400.0,0.0784]
[1750680442810,3.44676886,101410.0,101400.0,0.0784]
[1750680443001,3.64956886,101410.0,101400.0,0.0784]
[1750680444424,3.36047952,101410.0,101400.0,0.0784]
[1750680445813,3.36047952,101410.0,101400.0,0.07784]
[1750680447183,3.64989304,101410.0,101400.0,0.04464]
[1750680448189,3.64989304,101410.0,101400.0,0.01154]
[1750680448190,3.69065576,101410.0,101400.0,0.01154]
[1750680448399,3.82135515,101410.0,101400.0,0.01154]
[1750680448810,3.85101415,101410.0,101400.0,0.01154]
[1750680449683,3.88478387,101410.0,101400.0,0.01154]
[1750680449908,3.89464414,101410.0,101400.0,0.01154]
[1750680450111,3.86087423,101410.0,101400.0,0.01154]
[1750680450960,3.8707345,101410.0,101400.0,0.01154]
[1750680451446,3.92325563,101410.0,101400.0,0.01154]
[1750680452099,3.91339497,101410.0,101400.0,0.00854]
[1750680452553,3.91339497,101410.0,101400.0,0.00454]
[1750680452782,3.92325563,101410.0,101400.0,0.00454]
[1750680453044,3.92325563,101410.0,101400.0,0.00554]
[1750680453251,3.91339497,101410.0,101400.0,0.00554]
[1750680455163,3.9035345,101410.0,101400.0,0.00554]
[1750680455572,3.91339487,101410.0,101400.0,0.00554]
[1750680455781,3.92325544,101410.0,101400.0,0.00554]
[1750680456001,3.92325534,101410.0,101400.0,0.00554]
[1750680456572,3.93311591,101410.0,101400.0,0.00554]
[1750680457473,3.89045534,101410.0,101400.0,0.00554]
[1750680457682,3.55045534,101410.0,101400.0,0.00554]
[1750680458271,3.55045544,101410.0,101400.0,0.00554]
[1750680458477,3.54059487,101410.0,101400.0,0.00554]
[1750680459398,3.5307345,101410.0,101400.0,0.00554]
[1750680459654,3.54059497,101410.0,101400.0,0.00554]
[1750680459887,3.88059497,101410.0,101400.0,0.00554]
[1750680460086,3.89045563,101410.0,101400.0,0.00554]
[1750680460291,3.88059497,101410.0,101400.0,0.00554]
[1750680460782,3.89045573,101410.0,101400.0,0.00554]
[1750680460992,3.88059497,101410.0,101400.0,0.00554]
[1750680461194,3.30176793,101410.0,101400.0,0.00554]
[1750680461405,3.88059497,101410.0,101400.0,0.00554]
[1750680462068,3.69792597,101410.0,101400.0,0.00454]
[1750680462308,3.66802391,101410.0,101400.0,0.00454]
[1750680462515,3.65816325,101410.0,101400.0,0.00454]
[1750680462730,3.66802382,101410.0,101400.0,0.00454]
[1750680463366,3.66802382,101410.0,101400.0,0.00354]
[1750680463542,3.67002382,101410.0,101400.0,0.00354]
[1750680464358,3.66030731,101410.0,101400.0,0.00354]
[1750680465171,3.63976788,101410.0,101400.0,0.00354]
[1750680465578,3.62990731,101410.0,101400.0,0.00354]
[1750680465781,3.6483497,101410.0,101400.0,0.00354]
[1750680465994,3.62862896,101410.0,101400.0,0.00354]
[1750680466206,3.63848923,101410.0,101400.0,0.03454]
[1750680466401,3.61876888,101410.0,101400.0,0.03454]
[1750680466616,3.62862906,101410.0,101400.0,0.03454]
[1750680467989,3.63848933,101410.0,101400.0,0.03454]
[1750680468190,3.6483497,101410.0,101400.0,0.03454]
[1750680468603,3.66744484,101410.0,101400.0,0.00354]
[1750680468841,3.95693039,101410.0,101400.0,0.00354]
[1750680469139,3.94709657,101410.0,101400.0,0.00354]
[1750680469279,4.04739596,101410.0,101400.0,0.00354]
[1750680469880,3.75791041,101410.0,101400.0,0.00354]
[1750680470495,3.78156421,101410.0,101400.0,0.00354]
[1750680470698,3.79142468,101410.0,101400.0,0.00354]
[1750680470995,3.80128525,101410.0,101400.0,0.00354]
[1750680471331,3.80129083,101410.0,101400.0,0.00354]
[1750680473108,3.79143026,101410.0,101400.0,0.00354]
[1750680473305,3.77170942,101410.0,101400.0,0.00354]
[1750680473510,3.09243893,101410.0,101400.0,0.00354]
[1750680473652,3.09243893,101410.0,101400.0,0.03674]
[1750680473862,3.67141003,101410.0,101400.0,0.035934]
[1750680474269,3.67142456,101410.0,101400.0,0.035934]
[1750680474674,3.68128493,101410.0,101400.0,0.035934]
[1750680475078,3.67142456,101410.0,101400.0,0.035934]
[1750680475280,3.66156429,101410.0,101400.0,0.035934]
[1750680475478,3.44890411,101410.0,101400.0,0.035934]
[1750680475712,3.65166411,101410.0,101400.0,0.069034]
[1750680476624,3.62200511,101410.0,101400.0,0.069034]
[1750680476825,2.84027401,101410.0,101400.0,0.069034]
[1750680477029,0.63248555,101410.0,101400.0,0.069034]
[1750680480435,0.6323613,101410.0,101400.0,0.069034]
[1750680482105,2.9779583,101410.0,101400.0,0.069034]
[1750680490440,2.97546893,101410.0,101400.0,0.069034]
[1750680491671,3.26483023,101410.0,101400.0,0.002734]
[1750680492277,3.52616962,101410.0,101400.0,0.002734]
[1750680492474,3.5360298,101410.0,101400.0,0.002734]
[1750680492971,3.5668298,101410.0,101400.0,0.002734]
[1750680493178,3.57669017,101410.0,101400.0,0.002734]
[1750680493364,3.5668298,101410.0,101400.0,0.002734]
[1750680493558,3.57669007,101410.0,101400.0,0.002734]
[1750680494070,3.59515617,101410.0,101400.0,0.002734]
[1750680494484,3.57669007,101410.0,101400.0,0.002734]
[1750680494699,3.5643557,101410.0,101400.0,0.002734]
[1750680494912,3.58729543,101410.0,101400.0,0.002734]
[1750680495311,3.55449543,101410.0,101400.0,0.002734]
[1750680495519,3.6051417,101410.0,101400.0,0.002734]
[1750680495936,3.56435551,101410.0,101400.0,0.002734]
[1750680496275,3.55449514,101410.0,101400.0,0.002734]
[1750680496883,3.554495,101410.0,101400.0,0.002734]
[1750680497088,3.554495,101410.0,101400.0,0.00150181]
[1750680497494,3.5360298,101410.0,101400.0,0.00150181]
[1750680498367,3.63632919,101410.0,101400.0,0.00150181]
[1750680498621,3.5360298,101410.0,101400.0,0.00150181]
[1750680500039,3.55449665,101410.0,101400.0,0.00150181]
[1750680500552,3.55470693,101410.0,101400.0,0.00150181]
[1750680500779,3.5965672,101410.0,101400.0,0.00150181]
[1750680501010,3.60642767,101410.0,101400.0,0.00150181]
[1750680501914,3.71658879,101410.0,101400.0,0.00150181]
[1750680502151,3.70672813,101410.0,101400.0,0.00150181]
[1750680502395,3.99619457,101410.0,101400.0,0.00150181]
[1750680502660,3.71596368,101410.0,101400.0,0.00150181]
[1750680504013,3.61548382,101410.0,101400.0,0.00150181]
[1750680504254,3.62534429,101410.0,101400.0,0.00150181]
[1750680504692,3.62534735,101410.0,101400.0,0.00150181]
[1750680505157,3.63520792,101410.0,101400.0,0.00150181]
[1750680505391,3.62534735,101410.0,101400.0,0.00150181]
[1750680506449,3.69169374,101410.0,101400.0,0.00150181]
[1750680507062,3.68183337,101410.0,101400.0,0.00150181]
[1750680507479,3.62482735,101410.0,101400.0,0.00150181]
[1750680507682,3.62483281,101410.0,101400.0,0.00150181]
[1750680508097,3.64847901,101410.0,101400.0,0.00150181]
[1750680508307,3.62483281,101410.0,101400.0,0.00150181]
[1750680508920,3.63861802,101410.0,101400.0,0.00150181]
[1750680509121,3.93794493,101410.0,101400.0,0.00150181]
[1750680509363,3.91429915,101410.0,101400.0,0.00150181]
[1750680509576,3.61497234,101410.0,101400.0,0.00150181]
[1750680510479,3.61496227,101410.0,101400.0,0.00150181]
[1750680511337,3.63860048,101410.0,101400.0,0.00150181]
[1750680512245,3.62874021,101410.0,101400.0,0.00150181]
[1750680512904,3.61888003,101410.0,101400.0,0.00150181]
[1750680513322,3.38328495,101410.0,101400.0,0.03170181]
[1750680513528,3.58600495,101410.0,101400.0,0.06190181]
[1750680517841,3.58600955,101410.0,101400.0,0.06190181]
[1750680518622,3.00707667,101410.0,101400.0,0.06190181]
[1750680518822,3.58600955,101410.0,101400.0,0.06190181]
[1750680519263,3.59524698,101410.0,101400.0,0.06190181]
[1750680521412,3.61890562,101410.0,101400.0,0.06190181]
[1750680521618,3.59119854,101410.0,101400.0,0.06190181]
[1750680521825,3.61893108,101410.0,101400.0,0.06190181]
[1750680522181,3.25828181,101410.0,101400.0,0.06190181]
[1750680524234,3.59828181,101410.0,101400.0,0.06190181]
[1750680524429,3.61869798,101410.0,101400.0,0.06190181]
[1750680524610,3.62794755,101410.0,101400.0,0.06190181]
[1750680526318,3.52764816,101410.0,101400.0,0.06190181]
[1750680527353,3.52764878,101410.0,101400.0,0.06190181]
[1750680530235,3.52764929,101410.0,101400.0,0.06190181]
[1750680532169,3.55131935,101410.0,101400.0,0.06190181]
[1750680533022,3.54207288,101410.0,101400.0,0.06190181]
[1750680533229,3.55131951,101410.0,101400.0,0.06190181]
[1750680535973,3.52519045,101410.0,101400.0,0.06190181]
[1750680536355,3.54886147,101410.0,101400.0,0.06190181]
[1750680537452,3.52515045,101410.0,101400.0,0.06190181]
[1750680538910,3.52516977,101410.0,101400.0,0.06190181]
[1750680539334,3.35491661,101410.0,101400.0,0.06190181]
[1750680539947,2.77598373,101410.0,101400.0,0.06190181]
[1750680540153,3.33641028,101410.0,101400.0,0.06190181]
[1750680541823,3.29473028,101410.0,101400.0,0.06190181]
[1750680542035,3.00526384,101410.0,101400.0,0.06190181]
[1750680542221,2.97560384,101410.0,101400.0,0.06190181]
[1750680543835,0.29000684,101410.0,101400.0,0.06190181]
[1750680544081,0.0005404,101410.0,101400.0,0.06190181]
[1750680544302,0.63000684,101410.0,101400.0,0.06190181]
[1750680544515,0.0005404,101410.0,101400.0,0.1622012]
[1750680544732,0.0005404,101410.0,101400.0,0.83481625]
[1750680544959,0.0005404,101410.0,101400.0,0.87645625]
[1750680545177,0.34,101430.0,101420.0,0.07814085]
[1750680545411,0.62946644,101430.0,101420.0,0.17844024]
[1750680545835,0.62946644,101430.0,101420.0,0.17744024]
[1750680546050,0.28946644,101430.0,101420.0,0.17744024]
[1750680546262,0.62951272,101440.0,101430.0,0.0649]
[1750680546470,2.97482909,101440.0,101430.0,0.0649]
[1750680546694,2.97482909,101440.0,101430.0,0.0639]
[1750680547975,2.97482909,101440.0,101430.0,0.0679]
[1750680548597,2.97482909,101440.0,101430.0,0.0709]
[1750680559188,2.63478281,101440.0,101430.0,0.0709]
[1750680561109,2.97478281,101440.0,101430.0,0.0709]
[1750680563481,2.97482281,101440.0,101430.0,0.0709]
[1750680564978,0.62922581,101440.0,101430.0,0.0709]
[1750680565182,0.38677857,101440.0,101430.0,0.0709]
[1750680567794,2.73237557,101440.0,101430.0,0.007]
[1750680568457,3.26412248,101440.0,101430.0,0.007]
[1750680569882,3.26412248,101440.0,101430.0,0.0694]
[1750680570397,2.97485502,101440.0,101430.0,0.0694]
[1750680571034,2.97485502,101440.0,101430.0,0.0373]
[1750680573499,3.00261976,101440.0,101430.0,0.0373]
[1750680574876,3.00261976,101440.0,101430.0,0.068]
[1750680575509,3.00261969,101440.0,101430.0,0.068]
[1750680576302,3.00261969,101440.0,101430.0,0.063]
[1750680576874,3.00261936,101440.0,101430.0,0.063]
[1750680577790,3.00261936,101440.0,101430.0,0.0323]
[1750680578419,3.00261885,101440.0,101430.0,0.0323]
[1750680581147,2.99336424,101440.0,101430.0,0.0323]
[1750680581340,3.00261869,101440.0,101430.0,0.0323]
[1750680582573,2.99336424,101440.0,101430.0,0.0323]
[1750680584089,2.97485502,101440.0,101430.0,0.0323]
[1750680584291,2.99336341,101440.0,101430.0,0.0323]
[1750680586592,3.48135324,101440.0,101430.0,0.002]
[1750680586799,3.45473507,101440.0,101430.0,0.002]
[1750680587003,3.16551756,101440.0,101430.0,0.002]
[1750680588992,3.45473558,101440.0,101430.0,0.002]
[1750680589191,3.00261817,101440.0,101430.0,0.002]
[1750680589392,3.00261817,101440.0,101430.0,0.0654]
[1750680589830,3.00261344,101440.0,101430.0,0.0654]
[1750680592535,2.99335868,101440.0,101430.0,0.0654]
[1750680592724,2.99335789,101440.0,101430.0,0.0654]
[1750680594099,3.00260992,101440.0,101430.0,0.0654]
[1750680594317,3.2918435,101440.0,101430.0,0.0654]
[1750680594516,3.28259147,101440.0,101430.0,0.0654]
[1750680595580,3.28259175,101440.0,101430.0,0.0654]
[1750680597426,0.35854315,101440.0,101430.0,0.0654]
[1750680597648,0.93699475,101440.0,101430.0,0.0654]
[1750680599182,0.9184916,101440.0,101430.0,0.0654]
[1750680603749,0.34004,101440.0,101430.0,0.0654]
[1750680603970,0.9184916,101440.0,101430.0,0.0654]
[1750680605426,0.75361451,101440.0,101430.0,0.0654]
[1750680606494,0.17516291,101440.0,101430.0,0.0654]
[1750680606717,0.75361451,101440.0,101430.0,0.0654]
[1750680609817,0.17516291,101440.0,101430.0,0.0654]
[1750680610023,0.75361451,101440.0,101430.0,0.0654]
[1750680612982,0.75347527,101440.0,101430.0,0.0654]
[1750680618494,0.75347527,101440.0,101430.0,0.002]
[1750680618700,3.09907227,101440.0,101430.0,0.002]
[1750680619329,3.09907227,101440.0,101430.0,0.0328]
[1750680620003,3.11757525,101440.0,101430.0,0.002]
[1750680620230,3.14722125,101440.0,101430.0,0.002]
[1750680620498,3.17722125,101440.0,101430.0,0.002]
[1750680622733,3.14722125,101440.0,101430.0,0.002]
[1750680625265,3.18042125,101440.0,101430.0,0.002]
[1750680625975,3.18967386,101440.0,101430.0,0.002]
[1750680626197,3.18042125,101440.0,101430.0,0.002]
[1750680626425,3.18967393,101440.0,101430.0,0.002]
[1750680626892,3.1896745,101440.0,101430.0,0.002]
[1750680627847,2.6112229,101440.0,101430.0,0.002]
[1750680628123,3.1896745,101440.0,101430.0,0.002]
[1750680629426,3.3505545,101440.0,101430.0,0.002]
[1750680629883,3.350553,101440.0,101430.0,0.002]
[1750680630567,3.17556933,101440.0,101430.0,0.002]
[1750680633807,3.59779452,101440.0,101430.0,0.002]
[1750680634013,3.62271012,101440.0,101430.0,0.002]
[1750680634225,3.63256728,101440.0,101430.0,0.002]
[1750680634441,3.87226799,101440.0,101430.0,0.002]
[1750680634650,3.97256738,101440.0,101430.0,0.002]
[1750680635083,3.98242396,101440.0,101430.0,0.002]
[1750680635292,3.99228151,101440.0,101430.0,0.002]
[1750680635499,3.99228088,101440.0,101430.0,0.002]
[1750680635933,4.10243802,101440.0,101430.0,0.002]
[1750680636157,4.09258027,101440.0,101430.0,0.002]
[1750680636369,4.10243792,101440.0,101430.0,0.002]
[1750680636579,4.11229576,101440.0,101430.0,0.002]
[1750680636785,4.10243792,101440.0,101430.0,0.002]
[1750680637003,4.30945733,101440.0,101430.0,0.002]
[1750680637245,4.35174977,101440.0,101430.0,0.002]
[1750680637481,4.100261,101440.0,101430.0,0.002]
[1750680638338,4.10025349,101440.0,101430.0,0.002]
[1750680638541,3.91499944,101440.0,101430.0,0.002]
[1750680638773,3.74032414,101440.0,101430.0,0.002]
[1750680638986,2.962621,101420.0,101410.0,0.031]
[1750680639193,3.2435126,101420.0,101410.0,0.031]
[1750680641465,3.2435126,101420.0,101410.0,0.034]
[1750680641666,3.2435126,101420.0,101410.0,0.037]
[1750680645415,3.2435126,101420.0,101410.0,0.006]
[1750680646078,3.2731676,101420.0,101410.0,0.006]
[1750680647242,3.2731676,101420.0,101410.0,0.0378]
[1750680648346,3.2731676,101420.0,101410.0,0.006]
[1750680650241,3.2731676,101420.0,101410.0,0.0364]
[1750680656322,3.2731676,101420.0,101410.0,0.069]
[1750680656948,3.2315676,101420.0,101410.0,0.069]
[1750680657415,3.0707276,101420.0,101410.0,0.069]
[1750680657627,3.2315676,101420.0,101410.0,0.069]
[1750680657831,3.0707276,101420.0,101410.0,0.069]
[1750680658041,3.2315676,101420.0,101410.0,0.069]
[1750680658264,3.0707276,101420.0,101410.0,0.069]
[1750680658511,3.2315676,101420.0,101410.0,0.069]
[1750680659675,3.2019126,101420.0,101410.0,0.069]
[1750680659908,3.0410726,101420.0,101410.0,0.069]
[1750680660975,0.34,101420.0,101410.0,0.069]
[1750680661186,0.6292258,101420.0,101410.0,0.069]
[1750680662950,0.9184516,101420.0,101410.0,0.069]
[1750680677782,3.3302984,101420.0,101410.0,0.006]
[1750680678499,3.0410726,101420.0,101410.0,0.006]
[1750680680062,3.3302984,101420.0,101410.0,0.006]
[1750680683004,3.34879277,101420.0,101410.0,0.006]
[1750680684453,3.34879287,101420.0,101410.0,0.006]
[1750680684626,3.39031287,101420.0,101410.0,0.006]
[1750680685786,3.39031287,101420.0,101410.0,0.0378]
[1750680688320,3.3718184,101420.0,101410.0,0.0378]
[1750680689221,3.0825926,101420.0,101410.0,0.0378]
[1750680689872,2.504141,101420.0,101410.0,0.0378]
[1750680690083,3.0825926,101420.0,101410.0,0.0696]
[1750680692227,3.0825926,101420.0,101410.0,0.0378]
[1750680694588,2.7425926,101420.0,101410.0,0.0378]
[1750680696269,2.76108895,101420.0,101410.0,0.0378]
[1750680696681,3.10108895,101420.0,101410.0,0.0378]
[1750680697924,3.10108895,101420.0,101410.0,0.0684]
[1750680698953,3.10109115,101420.0,101410.0,0.0684]
[1750680701807,3.10109456,101420.0,101410.0,0.0684]
[1750680704673,3.10109456,101420.0,101410.0,0.0654]
[1750680704885,3.10109456,101420.0,101410.0,0.0634]
[1750680706251,3.10109456,101420.0,101410.0,0.0624]
[1750680706460,3.10109456,101420.0,101410.0,0.0634]
[1750680707501,3.10110872,101420.0,101410.0,0.0634]
[1750680716264,3.10110527,101420.0,101410.0,0.0634]
[1750680716969,3.39033107,101420.0,101410.0,0.0634]
[1750680719319,3.3903307,101420.0,101410.0,0.0634]
[1750680722425,2.5226533,101420.0,101410.0,0.0634]
[1750680722636,3.0595849,101420.0,101410.0,0.0634]
[1750680724074,3.0410726,101420.0,101410.0,0.0634]
[1750680730278,2.462621,101420.0,101410.0,0.0634]
[1750680730515,0.5784516,101420.0,101410.0,0.0629]
[1750680730749,0.9184516,101420.0,101410.0,0.0629]
[1750680730975,0.5784516,101420.0,101410.0,0.0629]
[1750680731389,0.9184516,101420.0,101410.0,0.0629]
[1750680731787,0.34,101420.0,101410.0,0.0629]
[1750680732000,0.9184516,101420.0,101410.0,0.0629]
[1750680734582,3.0410726,101420.0,101410.0,0.0629]
[1750680744403,3.0410726,101420.0,101410.0,0.0329]
[1750680744816,3.3302984,101420.0,101410.0,0.0329]
[1750680746094,3.3616984,101420.0,101410.0,0.001]
[1750680747470,3.3302984,101420.0,101410.0,0.001]
[1750680747678,3.3302984,101420.0,101410.0,0.0332]
[1750680751270,3.0410726,101420.0,101410.0,0.0634]
[1750680759926,3.3302984,101420.0,101410.0,0.0634]
[1750680760988,3.0410726,101420.0,101410.0,0.0634]
[1750680762824,2.462621,101420.0,101410.0,0.0634]
[1750680763078,3.0410726,101420.0,101410.0,0.0634]
[1750680766279,0.9184516,101420.0,101410.0,0.0634]
[1750680770595,3.0410726,101420.0,101410.0,0.0634]
[1750680771788,2.88638544,101420.0,101410.0,0.0634]
[1750680774033,3.17561124,101420.0,101410.0,0.0634]
[1750680774870,2.88638544,101420.0,101410.0,0.0634]
[1750680778417,2.30793384,101420.0,101410.0,0.0634]
[1750680778621,3.17561124,101420.0,101410.0,0.0634]
[1750680780241,3.17561124,101420.0,101410.0,0.001]
[1750680780452,3.45028267,101420.0,101410.0,0.001]
[1750680780699,3.36893124,101420.0,101410.0,0.001]
[1750680780875,3.38744098,101420.0,101410.0,0.001]
[1750680781469,3.56206973,101420.0,101410.0,0.001]
[1750680781668,3.57192923,101420.0,101410.0,0.001]
[1750680781930,3.62527736,101420.0,101410.0,0.001]
[1750680782151,3.61541777,101420.0,101410.0,0.001]
[1750680782376,3.7157101,101420.0,101410.0,0.001]
[1750680782607,3.7255696,101420.0,101410.0,0.001]
[1750680782834,3.7157101,101420.0,101410.0,0.001]
[1750680783068,3.7006539,101420.0,101410.0,0.001]
[1750680783281,3.70065183,101420.0,101410.0,0.001]
[1750680783699,3.60035244,101420.0,101410.0,0.001]
[1750680783912,3.58062691,101420.0,101410.0,0.001]
[1750680784395,3.55694393,101420.0,101410.0,0.001]
[1750680785771,3.39640422,101420.0,101410.0,0.001]
[1750680785987,3.59832422,101420.0,101410.0,0.001]
[1750680787394,3.59832129,101420.0,101410.0,0.001]
[1750680788105,3.56802129,101420.0,101410.0,0.001]
[1750680788286,3.66832068,101420.0,101410.0,0.001]
[1750680789134,3.66831448,101420.0,101410.0,0.001]
[1750680789620,3.64983017,101420.0,101410.0,0.001]
[1750680789860,3.66831448,101420.0,101410.0,0.001]
[1750680790540,3.69951448,101420.0,101410.0,0.001]
[1750680791876,3.699513,101420.0,101410.0,0.001]
[1750680792081,3.55877294,101420.0,101410.0,0.001]
[1750680792289,3.56801363,101420.0,101410.0,0.001]
[1750680794423,3.57787274,101420.0,101410.0,0.001]
[1750680794635,3.60997274,101420.0,101410.0,0.001]
[1750680794835,3.6099669,101420.0,101410.0,0.001]
[1750680795264,3.71026629,101420.0,101410.0,0.001]
[1750680795666,3.70040718,101420.0,101410.0,0.001]
[1750680795876,3.71026629,101420.0,101410.0,0.001]
[1750680796109,3.70040718,101420.0,101410.0,0.001]
[1750680797228,3.56800779,101420.0,101410.0,0.001]
[1750680797431,3.56800862,101420.0,101410.0,0.001]
[1750680797635,3.56801028,101420.0,101410.0,0.001]
[1750680797853,3.57786939,101420.0,101410.0,0.001]
[1750680798066,3.56862884,101420.0,101410.0,0.001]
[1750680798303,3.57786939,101420.0,101410.0,0.001]
[1750680798949,3.56801028,101420.0,101410.0,0.001]
[1750680800014,3.58773011,101420.0,101410.0,0.001]
[1750680800225,3.665089,101420.0,101410.0,0.001]
[1750680800428,3.66509267,101420.0,101410.0,0.001]
[1750680800850,3.67495226,101420.0,101410.0,0.001]
[1750680801054,3.69549267,101420.0,101410.0,0.001]
[1750680801268,3.68563317,101420.0,101410.0,0.001]
[1750680801478,3.65523317,101420.0,101410.0,0.001]
[1750680801895,3.55493378,101420.0,101410.0,0.001]
[1750680802543,3.60585297,101420.0,101410.0,0.001]
[1750680802758,3.59599328,101420.0,101410.0,0.001]
[1750680802983,3.56479328,101420.0,101410.0,0.001]
[1750680803542,3.55493706,101420.0,101410.0,0.001]
[1750680804216,3.54507776,101420.0,101410.0,0.001]
[1750680804424,3.58493716,101420.0,101410.0,0.001]
[1750680804845,3.54507776,101420.0,101410.0,0.001]
[1750680805033,3.55493706,101420.0,101410.0,0.001]
[1750680805201,3.54507776,101420.0,101410.0,0.001]
[1750680806534,3.55494052,101420.0,101410.0,0.001]
[1750680806686,3.33635968,101420.0,101410.0,0.001]
[1750680807310,3.33635894,101420.0,101410.0,0.001]
[1750680807515,3.34621834,101420.0,101410.0,0.001]
[1750680807914,3.35607793,101420.0,101410.0,0.001]
[1750680808612,3.69607793,101420.0,101410.0,0.001]
[1750680809397,4.04921024,101420.0,101410.0,0.001]
[1750680809512,3.75012475,101420.0,101410.0,0.001]
[1750680809713,3.73914423,101420.0,101410.0,0.001]
[1750680809925,3.72928444,101420.0,101410.0,0.001]
[1750680810122,3.81972414,101420.0,101410.0,0.001]
[1750680810329,3.82958383,101420.0,101410.0,0.001]
[1750680810879,3.55021792,101420.0,101410.0,0.001]
[1750680811080,3.75296208,101420.0,101410.0,0.001]
[1750680811288,3.72928846,101420.0,101410.0,0.001]
[1750680811841,3.9363482,101420.0,101410.0,0.001]
[1750680812297,3.92648909,101420.0,101410.0,0.001]
[1750680812707,4.84212269,101420.0,101400.0,0.03300181]
[1750680812907,3.6123066,101410.0,101400.0,0.00150181]
[1750680813115,3.63018891,101410.0,101400.0,0.00150181]
[1750680813331,3.64004948,101410.0,101400.0,0.00150181]
[1750680814245,3.63018891,101410.0,101400.0,0.00150181]
[1750680814393,3.64004948,101410.0,101400.0,0.00250181]
[1750680814617,3.60527331,101410.0,101400.0,0.00550181]
[1750680814868,3.60527331,101410.0,101400.0,0.03570181]
[1750680815032,3.58678067,101410.0,101400.0,0.03570181]
[1750680815208,3.60527596,101410.0,101400.0,0.03570181]
[1750680815597,3.60527596,101410.0,101400.0,0.03470181]
[1750680815955,3.60527596,101410.0,101400.0,0.03770181]
[1750680816173,3.61513653,101410.0,101400.0,0.03770181]
[1750680817263,3.71543582,101410.0,101400.0,0.03770181]
[1750680817792,3.61513643,101410.0,101400.0,0.03770181]
[1750680817994,3.61512728,101410.0,101400.0,0.03770181]
[1750680818204,3.64478728,101410.0,101400.0,0.03770181]
[1750680818655,3.65464794,101410.0,101400.0,0.03770181]
[1750680820412,3.64478728,101410.0,101400.0,0.03770181]
[1750680820887,3.62629634,101410.0,101400.0,0.03770181]
[1750680821147,3.64478406,101410.0,101400.0,0.03770181]
[1750680821392,3.63553966,101410.0,101400.0,0.03770181]
[1750680821915,3.62567919,101410.0,101400.0,0.03770181]
[1750680822132,3.32659302,101410.0,101400.0,0.03770181]
[1750680823255,3.33645349,101410.0,101400.0,0.03770181]
[1750680823683,3.33645172,101410.0,101400.0,0.03770181]
[1750680824097,3.32659116,101410.0,101400.0,0.03770181]
[1750680824542,3.31673098,101410.0,101400.0,0.03770181]
[1750680826337,3.32659116,101410.0,101400.0,0.03770181]
[1750680826557,3.31673098,101410.0,101400.0,0.03770181]
[1750680826766,3.31673097,101410.0,101400.0,0.03770181]
[1750680827379,3.31673097,101410.0,101400.0,0.06910181]
[1750680830832,3.3167335,101410.0,101400.0,0.06910181]
[1750680831792,2.9767335,101410.0,101400.0,0.06910181]
[1750680833977,3.3167335,101410.0,101400.0,0.06910181]
[1750680835487,3.3259802,101410.0,101400.0,0.06910181]
[1750680837650,3.30749069,101410.0,101400.0,0.06910181]
[1750680837904,3.32598989,101410.0,101400.0,0.06910181]
[1750680838330,3.33585287,101410.0,101400.0,0.06910181]
[1750680838910,3.34571305,101410.0,101400.0,0.06910181]
[1750680839377,3.36543389,101410.0,101400.0,0.06910181]
[1750680840017,3.36543473,101410.0,101400.0,0.06910181]
[1750680840247,3.75495993,101410.0,101400.0,0.03770181]
[1750680840491,3.75496061,101410.0,101400.0,0.00750181]
[1750680841152,3.75496061,101410.0,101400.0,0.03900181]
[1750680841369,0.55696202,101400.0,101390.0,0.0628]
[1750680841588,4.36075389,101400.0,101390.0,0.0001]
[1750680841825,2.30633643,101390.0,101380.0,0.0302688]
[1750680842027,3.4532553,101390.0,101380.0,0.0302688]
[1750680842507,3.84183487,101390.0,101380.0,0.0302688]
[1750680842763,0.21700482,101380.0,101370.0,0.0322]
[1750680842977,3.59489608,101380.0,101370.0,0.0001]
[1750680843205,3.576394,101380.0,101370.0,0.0307]
[1750680843448,3.46623103,101380.0,101370.0,0.0307]
[1750680843655,3.82469123,101380.0,101370.0,0.0307]
[1750680843874,3.80623103,101380.0,101370.0,0.0307]
[1750680844087,3.82469102,101380.0,101370.0,0.0307]
[1750680844299,3.90653042,101380.0,101370.0,0.0307]
[1750680844741,3.80623103,101380.0,101370.0,0.0307]
[1750680845176,3.80823103,101380.0,101370.0,0.0307]
[1750680845624,3.80623103,101380.0,101370.0,0.0307]
[1750680845855,3.81023103,101380.0,101370.0,0.0307]
[1750680846075,3.81323103,101380.0,101370.0,0.0317]
[1750680846301,3.91353042,101380.0,101370.0,0.0317]
[1750680848901,3.81323103,101380.0,101370.0,0.0317]
[1750680849164,3.84290103,101380.0,101370.0,0.0317]
[1750680849372,2.6678046,101370.0,101360.0,0.06646532]
[1750680849583,2.84797274,101370.0,101360.0,0.06646532]
[1750680849805,2.84797283,101370.0,101360.0,0.06646532]
[1750680850685,2.87764174,101370.0,101360.0,0.06646532]
[1750680850902,2.86777757,101370.0,101360.0,0.06646532]
[1750680851114,2.86877757,101370.0,101360.0,0.06646532]
[1750680852061,2.8589136,101370.0,101360.0,0.06646532]
[1750680852177,3.1989136,101370.0,101360.0,0.09646532]